[Event "2nd China Preliminary Asian Games 2022"]
[Site "HangZhou"]
[Date "2022.04.20"]
[Round "6.3"]
[White "Bu, Xiangzhi"]
[Black "Xu, Xiangyu"]
[Result "1/2-1/2"]
[ECO "E56"]
[WhiteElo "2700"]
[BlackElo "2564"]
[Annotator "TA"]
[PlyCount "258"]
[EventDate "2022.04.13"]
[EventType "tourn"]
[EventCountry "CHN"]
[SourceTitle "playchess.com"]
[Source "ChessBase"]
[SourceQuality "1"]
[TimeControl "40/5400+30:1800+30"]

{[%evp 91,258,84,101,93,93,93,93,93,93,93,93,93,93,93,93,71,114,114,114,114,114,114,114,74,114,93,93,79,114,114,114,114,114,113,113,106,114,107,108,97,97,0,113,89,114,107,114,114,114,114,114,74,114,74,114,0,114,81,93,93,93,93,93,93,93,67,93,0,93,93,93,93,93,93,93,93,93,93,97,39,39,39,39,39,39,39,39,39,39,39,39,39,39,39,39,39,39,39,39,0,39,39,39,0,39,0,39,39,39,39,39,39,39,16,16,0,39,0,16,8,39,8,40,40,40,40,40,40,40,40,40,40,40,40,40,40,40,40,40,40,40,40,40,0,40,40,40,40,40,40,40,26,26,0,40,40,40,40,40,40,40,40,40,40,40,26,26,0,0]} 1. d4 {[%emt 0:00:15]} Nf6 {[%emt 0:00:10]} 2. c4 {[%emt 0:00:11]} e6 {[%emt 0:00:09]} 3. Nc3 {[%emt 0:00:24]} Bb4 {[%emt 0:00:08]} 4. e3 {[%emt 0:00:26]} O-O {[%emt 0:00:10]} 5. Bd3 {[%emt 0:00:32]} d5 {[%emt 0:00:12]} 6. Nf3 {[%emt 0:00:08]} dxc4 {[%emt 0:00:09]} 7. Bxc4 {[%emt 0:00:03]} c5 {[%emt 0:00:08]} 8. O-O {[%emt 0:00:15]} Nc6 {[%emt 0:00:50]} 9. a3 {[%emt 0:06:56]} Ba5 {[%emt 0:00:09]} 10. Qd3 {[%emt 0:00:16]} a6 {[%emt 0:12:31]} 11. dxc5 {[%emt 0:11:16]} Qxd3 {[%emt 0:15:20]} 12. Bxd3 {[%emt 0:01:57]} Rd8 {[%emt 0:00:06]} 13. Bc2 {[%emt 0:00:06]} Bxc3 {[%emt 0:06:53]} 14. bxc3 {[%emt 0:00:11]} Rd5 {[%emt 0:09:09]} 15. a4 {[%emt 0:01:25]} Rxc5 {[%emt 0:00:19]} 16. Ba3 {[%emt 0:00:11]} Rd5 {[%emt 0:01:32]} 17. e4 {[%emt 0:16:42]} Rd8 {[%emt 0:00:14]} 18. Bc5 {[%emt 0:00:06]} e5 {[%emt 0:18:23]} 19. Rfb1 {[%emt 0:04:18]} Re8 {[%emt 0:04:48]} 20. a5 {[%emt 0:08:21]} h6 {[%emt 0:14:33]} 21. h3 {[%emt 0:04:50]} Rd8 {[%emt 0:03:58]} 22. Rb2 {[%emt 0:08:36]} Rb8 {[%emt 0:01:38]} 23. Bb6 {[%emt 0:03:17]} Re8 {[%emt 0:00:06]} 24. Bc7 {[%emt 0:01:47]} Ra8 {[%emt 0:00:07]} 25. c4 {[%emt 0:10:32]} Re6 {[%emt 0:00:47]} 26. Rd1 {[%emt 0:01:58]} Ne8 {[%emt 0:00:47]} 27. Bb6 {[%emt 0:00:36]} Rd6 {[%emt 0:00:41]} 28. Rd5 {[%emt 0:13:14]} Be6 {[%emt 0:01:38]} 29. Bb3 {[%emt 0:00:03]} Rd7 {[%emt 0:03:51]} 30. Nxe5 {[%emt 0:00:46]} Nxe5 {[%emt 0:01:06]} 31. Rxe5 {[%emt 0:00:01]} Rd3 {[%emt 0:01:59]} 32. Rc5 {[%emt 0:04:42]} Nf6 {[%emt 0:01:27]} 33. Rc7 {[%emt 0:00:05]} Rd7 {[%emt 0:00:19]} 34. Rxd7 {[%emt 0:01:36]} Nxd7 {[%emt 0:00:05]} 35. Be3 {[%emt 0:00:31]} Rc8 {[%emt 0:01:56]} 36. f4 {[%emt 0:00:50]} Nc5 {[%emt 0:00:26]} 37. Ba2 {[%emt 0:00:59]} Nxe4 {[%emt 0:00:34]} 38. Rxb7 {[%emt 0:00:26]} Nc3 {[%emt 0:01:36]} 39. f5 {[%emt 0:00:33]} Bxf5 {[%emt 0:00:28]} 40. Bb3 {[%emt 0:00:00]} Be6 {[%emt 0:00:00]} 41. Rb4 {[%emt 0:06:10]} Ne4 {[%emt 0:04:05]} 42. Bc2 {[%emt 0:07:14]} Nd6 {[%emt 0:05:41]} 43. c5 {[%emt 0:00:19]} Nc4 {[%emt 0:00:21]} 44. Bf2 {[%emt 0:00:03]} Nxa5 {[%emt 0:00:30]} 45. Bd3 {[%emt 0:00:54]} Nb3 {[%emt 0:03:24]} 46. Bxa6 {[%emt 0:00:10]} Rxc5 {[%emt 0:00:46]} 47. Rb8+ {[%emt 0:01:51]} Kh7 {[%emt 0:00:06]} 48. Bxc5 {[%emt 0:00:38]} Nxc5 {[%emt 0:00:05]} 49. Bb5 {[%emt 0:00:15]} g6 {[%emt 0:01:43]} 50. Kf2 {[%emt 0:00:27]} Kg7 {[%emt 0:00:42]} 51. Ke3 {[%emt 0:00:04]} Nd7 {[%emt 0:02:13]} 52. Rd8 {[%emt 0:01:29]} Nf6 {[%emt 0:02:08]} 53. Bc6 {[%emt 0:07:36]} h5 {[%emt 0:02:14]} 54. Kf4 {[%emt 0:01:25]} Bb3 {[%emt 0:00:39]} 55. Ke5 {[%emt 0:00:53]} Ba2 {[%emt 0:00:09]} 56. Rd6 {[%emt 0:00:22]} Be6 {[%emt 0:00:06]} 57. Bb5 {[%emt 0:00:24]} Ng8 {[%emt 0:00:49]} 58. Be8 {[%emt 0:00:07]} Nh6 {[%emt 0:01:07]} 59. Ra6 {[%emt 0:02:43]} Ng8 {[%emt 0:00:34]} 60. Bc6 {[%emt 0:01:03]} Nh6 {[%emt 0:01:05]} 61. Be4 {[%emt 0:00:33]} Ng8 {[%emt 0:00:41]} 62. Kf4 {[%emt 0:00:10]} Nf6 {[%emt 0:00:17]} 63. Bb1 {[%emt 0:00:46]} Bc4 {[%emt 0:01:29]} 64. Rd6 {[%emt 0:00:12]} Be6 {[%emt 0:00:36]} 65. Kg5 {[%emt 0:00:53]} Nh7+ {[%emt 0:00:36]} 66. Kf4 {[%emt 0:00:04]} Nf6 {[%emt 0:00:05]} 67. Bd3 {[%emt 0:00:05]} Nh7 {[%emt 0:00:39]} 68. Be4 {[%emt 0:00:37]} Nf6 {[%emt 0:00:17]} 69. Bf3 {[%emt 0:00:02]} Ne8 {[%emt 0:12:31]} 70. Rd8 {[%emt 0:00:08]} Nf6 {[%emt 0:00:00]} 71. Ke5 {[%emt 0:00:55]} Ng8 {[%emt 0:00:00]} 72. Bc6 {[%emt 0:02:03]} Nf6 {[%emt 0:00:00]} 73. Bf3 {[%emt 0:00:47]} Ng8 $1 {[%emt 0:00:00]} 74. Bd5 {[%emt 0:00:14]} Bxd5 {[%emt 0:00:00]} 75. Rxd5 {[%emt 0:00:25]} Nh6 {[%emt 0:00:00]} 76. Rd4 {[%emt 0:00:11]} Ng8 {[%emt 0:00:00]} 77. Rf4 {[%emt 0:02:19]} Nh6 {[%emt 0:00:00]} 78. Kd6 {[%emt 0:01:19]} Ng8 {[%emt 0:00:00]} 79. Ke5 {[%emt 0:01:07]} Nh6 $1 {[%emt 0:00:00]} 80. Rf1 {[%emt 0:00:11]} Ng8 {[%emt 0:00:00]} 81. Rf2 {[%emt 0:00:19]} Nh6 {[%emt 0:00:00]} 82. Rf6 {[%emt 0:00:20]} Ng8 {[%emt 0:00:00]} 83. Rb6 {[%emt 0:00:22]} Nh6 {[%emt 0:00:00]} 84. Ra6 {[%emt 0:00:03]} Ng8 {[%emt 0:00:00]} 85. g4 {[%emt 0:00:10]} (85. Ra7 $16) 85... hxg4 $14 {[%emt 0:00:18]} 86. hxg4 {[%emt 0:00:03]} Nh6 {[%emt 0:01:34]} 87. g5 {[%emt 0:00:06]} Nf5 {[%emt 0:00:21]} 88. Ra7 {[%emt 0:00:44]} Nh4 {[%emt 0:01:08]} 89. Ra3 {[%emt 0:02:04]} Nf5 {[%emt 0:00:16]} 90. Ra6 {[%emt 0:01:24]} Nh4 {[%emt 0:00:19]} 91. Rd6 {[%emt 0:00:31]} Nf3+ {[%emt 0:00:32]} 92. Kf4 {[%emt 0:00:03]} Nh4 $1 {[%emt 0:00:04]} 93. Rf6 {[%emt 0:00:03]} Nf5 {[%emt 0:00:42]} 94. Ke5 {[%emt 0:00:03]} Kf8 {[%emt 0:00:29]} 95. Ra6 {[%emt 0:01:00]} Ng7 {[%emt 0:02:51]} 96. Ra7 {[%emt 0:02:28]} Ke8 {[%emt 0:00:05]} 97. Kf6 {[%emt 0:00:46]} Nh5+ {[%emt 0:00:04]} 98. Ke5 {[%emt 0:00:01]} Ng7 {[%emt 0:00:02]} 99. Ra8+ {[%emt 0:00:32]} Ke7 {[%emt 0:00:04]} 100. Rb8 {[%emt 0:00:06]} Ne8 {[%emt 0:00:12]} 101. Rb7+ {[%emt 0:00:12]} Kf8 {[%emt 0:00:04]} 102. Kd5 {[%emt 0:00:04]} Ng7 {[%emt 0:00:26]} 103. Rb6 {[%emt 0:00:40]} Ke7 {[%emt 0:00:37]} 104. Rb7+ {[%emt 0:01:07]} Kf8 {[%emt 0:00:14]} 105. Kd6 {[%emt 0:01:19]} Nf5+ {[%emt 0:00:42]} 106. Kd7 {[%emt 0:00:37]} f6 {[%emt 0:00:21]} 107. Ke6 {[%emt 0:00:20]} fxg5 {[%emt 0:00:06]} 108. Kf6 {[%emt 0:00:04]} Ke8 {[%emt 0:00:07]} 109. Kxg5 {[%emt 0:00:11]} Kd8 {[%emt 0:00:46]} 110. Kxg6 {[%emt 0:00:06]} Nd6 {[%emt 0:00:25]} 111. Rh7 {[%emt 0:00:04]} Nc8 {[%emt 0:01:58]} 112. Kf6 {[%emt 0:00:02]} Nd6 {[%emt 0:00:05]} 113. Ke6 {[%emt 0:00:02]} Nc8 {[%emt 0:00:06]} 114. Rd7+ {[%emt 0:01:13]} Ke8 {[%emt 0:00:04]} 115. Rd4 {[%emt 0:00:24]} Ne7 {[%emt 0:00:33]} 116. Rg4 {[%emt 0:00:35]} Kd8 {[%emt 0:00:25]} 117. Rd4+ {[%emt 0:00:03]} Ke8 {[%emt 0:00:04]} 118. Rh4 {[%emt 0:00:02]} Ng6 {[%emt 0:00:11]} 119. Re4 {[%emt 0:00:03]} Nf8+ $1 {[%emt 0:00:27]} 120. Kf6+ {[%emt 0:00:04]} Kd8 {[%emt 0:00:04]} 121. Rd4+ {[%emt 0:00:01]} Ke8 {[%emt 0:00:04]} 122. Re4+ {[%emt 0:00:44]} Kd8 {[%emt 0:00:04]} 123. Re7 {[%emt 0:00:01]} Nd7+ $1 {[%emt 0:00:11]} 124. Ke6 {[%emt 0:00:02]} Nb6 {[%emt 0:00:06]} 125. Rb7 {[%emt 0:02:24]} Nc8 $1 {[%emt 0:00:06]} 126. Rh7 {[%emt 0:00:02]} Nb6 {[%emt 0:00:06]} 127. Kd6 {[%emt 0:00:03]} Nc8+ $1 {[%emt 0:00:06]} 128. Kc6 {[%emt 0:00:01]} Ne7+ {[%emt 0:00:05]} 129. Rxe7 {[%emt 0:00:04]} Kxe7 {[%emt 0:00:35]} 1/2-1/2

[Event "2nd China Preliminary Asian Games 2022"]
[Site "HangZhou"]
[Date "2022.04.21"]
[Round "7.1"]
[White "Xu, Xiangyu"]
[Black "Ding, Liren"]
[Result "1/2-1/2"]
[ECO "E35"]
[WhiteElo "2564"]
[BlackElo "2799"]
[Annotator "TA"]
[PlyCount "71"]
[EventDate "2022.04.13"]
[EventType "tourn"]
[EventCountry "CHN"]
[SourceTitle "playchess.com"]
[Source "ChessBase"]
[SourceQuality "1"]
[TimeControl "40/5400+30:1800+30"]

{[%evp 13,71,25,22,33,20,17,22,15,18,0,0,0,0,0,0,0,0,-4,-4,-33,0,0,0,0,0,0,0,0,0,0,0,0,0,0,0,0,0,0,0,0,0,0,0,0,0,0,0,0,0,0,0,0,0,0,0,0,0,0,0,0]} 1. d4 {[%emt 0:00:04]} Nf6 {[%emt 0:00:26]} 2. c4 {[%emt 0:00:06]} e6 {[%emt 0:00:02]} 3. Nc3 {[%emt 0:00:08]} Bb4 {[%emt 0:00:05]} 4. Qc2 {[%emt 0:00:08]} d5 {[%emt 0:00:30]} 5. cxd5 {[%emt 0:00:08]} exd5 {[%emt 0:00:31]} 6. Bg5 {[%emt 0:00:07]} h6 {[%emt 0:02:54]} 7. Bh4 $1 {[%emt 0:00:06] The main line 7.Bh4 scores better than 7.Bxf6.} O-O {[%emt 0:00:37]} 8. e3 {[%emt 0:03:42] E35: Nimzo-Indian: Classical: 4...d5 5 cxd5 exd5.} c5 {[%emt 0:00:07]} 9. dxc5 {[%emt 0:12:08]} Be6 {[%emt 0:00:11]} 10. Nf3 {[%emt 0:01:14]} Nbd7 {[%emt 0:01:11]} 11. a3 {[%emt 0:19:20]} Bxc3+ {[%emt 0:07:32]} 12. Qxc3 {[%emt 0:00:08] Strongly threatening Bd3.} g5 $1 {[%emt 0:00:02] [#] White must now prevent ...Ne4.} 13. Bg3 {[%emt 0:01:16] And now Bd3 would win.} Ne4 {[%emt 0:00:11][%csl LRc3,LRc5]} 14. Qc2 {[%emt 0:06:25]} Ndxc5 {[%emt 0:06:06]} 15. Be2 {[%emt 0:05:56]} Rc8 {[%emt 0:15:00][%cal Od5d4] aiming for ...d4!} ({Much less strong is} 15... Nxg3 16. hxg3 Ne4 17. Qa4 $14) 16. Qd1 {[%emt 0:32:43]} Qb6 {[%emt 0:07:17]} ({Much worse is} 16... Nxg3 17. hxg3 Qf6 18. Qd4 $14) 17. b4 {[%emt 0:00:56][%cal Bb2b4,Bb4c5][%mdl 32] The position is equal.} Nc3 {[%emt 0:12:14]} 18. bxc5 {[%emt 0:00:06]} Qb2 {[%emt 0:00:04]} 19. Be5 {[%emt 0:00:05]} Nxd1 {[%emt 0:08:43][%cal Bc3d1,Bd1b2,Bb2a4,Ba4c5,Bc5d3,Bd3f2,Bf2e4][%mdl 32]} 20. Bxb2 {[%emt 0:00:07]} Nxb2 {[%emt 0:00:02]} 21. Rb1 {[%emt 0:00:10]} Na4 {[%emt 0:00:23]} 22. Rxb7 {[%emt 0:00:49]} Nxc5 {[%emt 0:01:56] [#]} 23. Rxa7 $146 {[%emt 0:00:05]} ({Predecessor:} 23. O-O Nxb7 {0-1 (23) Behling,H (2282)-De Oliveira,D (2102) ICCF email 2016}) 23... Nd3+ {[%emt 0:01:35][%mdl 64] [#] Deflection} 24. Kd2 $1 {[%emt 0:04:16]} ({Much weaker is} 24. Bxd3 Rc1+ 25. Kd2 Rxh1 $17) 24... Nxf2 {[%emt 0:00:12]} 25. Rc1 {[%emt 0:00:05]} Ne4+ {[%emt 0:05:50]} 26. Kd1 {[%emt 0:00:04]} Nf2+ {[%emt 0:12:39]} 27. Kd2 {[%emt 0:00:03]} Ne4+ {[%emt 0:00:29]} 28. Kd1 {[%emt 0:00:04]} Rxc1+ {[%emt 0:00:04]} 29. Kxc1 {[%emt 0:00:04]} Rc8+ {[%emt 0:00:02]} 30. Kb2 {[%emt 0:00:07]} Rb8+ {[%emt 0:00:05]} 31. Kc2 {[%emt 0:00:14]} Rc8+ {[%emt 0:00:03]} 32. Kb2 {[%emt 0:00:04]} Rc3 {[%emt 0:01:14]} 33. a4 {[%emt 0:02:38]} Rxe3 {[%emt 0:00:04]} 34. Nd4 {[%emt 0:04:12]} Nd6 $1 {[%emt 0:00:26] ...Nf5 is the strong threat.} 35. Bh5 {[%emt 0:01:26]} Bc8 {[%emt 0:12:04]} 36. Rc7 {[%emt 0:01:20] An interesting draw.  Weighted Error Value: White=0.03 (flawless) /Black=0.01 (flawless)} 1/2-1/2

[Event "2nd China Preliminary Asian Games 2022"]
[Site "HangZhou"]
[Date "2022.04.21"]
[Round "7.2"]
[White "Wei, Yi"]
[Black "Bu, Xiangzhi"]
[Result "1/2-1/2"]
[ECO "C54"]
[WhiteElo "2729"]
[BlackElo "2700"]
[Annotator "TA"]
[PlyCount "63"]
[EventDate "2022.04.13"]
[EventType "tourn"]
[EventCountry "CHN"]
[SourceTitle "playchess.com"]
[Source "ChessBase"]
[SourceQuality "1"]
[TimeControl "40/5400+30:1800+30"]

{[%evp 10,63,32,18,22,10,15,8,15,17,0,18,20,-3,9,0,0,0,0,-5,0,-3,-6,-8,-14,-19,0,0,0,0,0,0,0,0,0,0,0,0,0,0,0,0,0,0,0,0,0,0,0,0,0,0,0,0,0,0]} 1. e4 {[%emt 0:01:48]} e5 {[%emt 0:02:10]} 2. Nf3 {[%emt 0:01:10]} Nc6 {[%emt 0:01:42]} 3. Bc4 {[%emt 0:02:09]} Bc5 {[%emt 0:00:21]} 4. c3 {[%emt 0:00:38]} Nf6 {[%emt 0:00:07]} 5. d3 {[%emt 0:01:51]} d6 {[%emt 0:00:30]} 6. O-O {[%emt 0:00:35]} a5 {[%emt 0:03:00] The position is equal. C54: Giuoco Piano: 4 c3 Nf6, main lines with 5 d4 and 5 d3.} 7. Re1 {[%emt 0:02:34]} h6 {[%emt 0:02:28]} 8. Nbd2 {[%emt 0:01:27]} O-O {[%emt 0:00:08]} 9. h3 {[%emt 0:01:56]} a4 {[%emt 0:00:59]} 10. Bb5 {[%emt 0:01:27]} Bd7 {[%emt 0:00:18]} 11. Nc4 {[%emt 0:00:53]} Na5 {[%emt 0:14:48]} 12. Nxa5 {[%emt 0:00:16]} (12. Bxd7 {is interesting.} Qxd7 13. Ne3 Bxe3 14. Bxe3 Nc6 15. c4) 12... Rxa5 {[%emt 0:00:03]} ({Don't take} 12... Bxb5 13. Nxb7 Bxf2+ 14. Kxf2 $14) 13. Bxd7 {[%emt 0:00:19]} Qxd7 {[%emt 0:00:39] [#]} 14. Be3 $146 {[%emt 0:00:52]} ({Predecessor:} 14. Nh4 d5 15. Qf3 dxe4 16. dxe4 Kh7 17. Nf5 Qc6 18. Bd2 Rd8 19. Rad1 Raa8 20. Bc1 {0-1 (72) Knoeppel,B (1922)-Kolanek,R (2089) LSS email 2011}) 14... Bxe3 {[%emt 0:00:20]} 15. Rxe3 {[%emt 0:00:08]} Re8 {[%emt 0:00:23]} 16. b4 {[%emt 0:00:49]} axb3 {[%emt 0:00:23]} 17. axb3 {[%emt 0:00:07]} Rea8 {[%emt 0:02:08]} 18. Rxa5 {[%emt 0:00:26]} Rxa5 {[%emt 0:00:03]} 19. d4 {[%emt 0:00:22]} Ra8 {[%emt 0:03:19]} 20. c4 {[%emt 0:04:53]} Qe7 {[%emt 0:01:22]} 21. b4 {[%emt 0:00:35]} exd4 {[%emt 0:01:35]} 22. Qxd4 {[%emt 0:00:10]} Nd7 {[%emt 0:00:14]} 23. e5 {[%emt 0:00:18]} Nxe5 {[%emt 0:00:36]} 24. Nxe5 {[%emt 0:00:06]} dxe5 {[%emt 0:00:03]} 25. Qxe5 {[%emt 0:00:05]} Qxe5 {[%emt 0:00:21]} 26. Rxe5 $11 {[%emt 0:00:04][%mdl 4096] Endgame KR-KR} Kf8 {[%emt 0:00:09]} 27. Kf1 {[%emt 0:00:41]} Ra4 {[%emt 0:00:49]} 28. Rc5 {[%emt 0:00:12]} Rxb4 {[%emt 0:00:14] Threatens to win with ...c6.} 29. Rxc7 {[%emt 0:00:05]} Rb2 {[%emt 0:00:09]} 30. c5 {[%emt 0:00:04]} g6 {[%emt 0:00:06]} 31. c6 {[%emt 0:00:03]} bxc6 {[%emt 0:00:03]} 32. Rxc6 {[%emt 0:00:05] An even fight not without its subleties.  Weighted Error Value: White=0.03 (flawless) /Black=0.02 (flawless)} 1/2-1/2

[Event "2nd China Preliminary Asian Games 2022"]
[Site "HangZhou"]
[Date "2022.04.21"]
[Round "7.3"]
[White "Zhang, Zhong"]
[Black "Ma, Qun"]
[Result "0-1"]
[ECO "A05"]
[WhiteElo "2640"]
[BlackElo "2645"]
[Annotator "TA"]
[PlyCount "126"]
[EventDate "2022.04.13"]
[EventType "tourn"]
[EventCountry "CHN"]
[SourceTitle "playchess.com"]
[Source "ChessBase"]
[SourceQuality "1"]
[TimeControl "40/5400+30:1800+30"]

{[%evp 11,126,19,25,-18,0,-14,-8,-17,-4,-18,-18,-18,4,4,0,-22,8,-18,-10,-25,-24,-49,-21,-85,-65,-50,-54,-52,-51,-106,-101,-85,-83,-105,-110,-121,-111,-123,-116,-118,-116,-120,-122,-113,-112,-116,-100,-95,-40,-143,-124,-121,-125,-133,-89,-133,-124,-121,-88,-81,-89,-87,-64,-72,-83,-122,-125,-129,-123,-133,-124,-129,-128,-127,-104,-273,-268,-272,-284,-447,-394,-379,-272,-630,-630,-630,-608,-566,-562,-650,-275,-575,-537,-485,-451,-1628,-1430,-1482,-1460,-1370,-1399,-1091,-845,-1402,-1662,-1517,-1340,-29959,-29962,-12840,-10035,-6890,-10172,-6095,-2055,-6490,-5409]} 1. Nf3 {[%emt 0:00:17]} Nf6 {[%emt 0:00:45]} 2. g3 {[%emt 0:00:20]} b5 {[%emt 0:00:17]} 3. Bg2 {[%emt 0:00:15]} Bb7 {[%emt 0:00:06]} 4. d3 {[%emt 0:00:17]} e6 {[%emt 0:00:39]} 5. O-O {[%emt 0:00:34]} d6 {[%emt 0:03:22]} 6. e4 {[%emt 0:00:32]} c5 {[%emt 0:00:15]} 7. Ng5 {[%emt 0:01:05] A05: Réti Opening: 1 Nf3 Nf6.} h6 {[%emt 0:00:58][%cal Bh7h6,Bh6h5,Bh5h4,Bh4h3][%mdl 32]} 8. Nh3 {[%emt 0:00:08]} Nc6 {[%emt 0:05:30]} 9. f4 {[%emt 0:00:21] The position is equal.} Be7 {[%emt 0:00:20]} 10. Be3 {[%emt 0:01:22] [#]} Qc7 $146 {[%emt 0:06:32]} ({Predecessor:} 10... h5 11. Nf2 d5 12. e5 Nd7 13. c4 bxc4 14. dxc4 Nb6 15. Na3 Rb8 16. Nd3 d4 {0-1 (40) Zhang,Z (2639)-Anand,V (2766) Wijk aan Zee 2004}) 11. c3 {[%emt 0:06:23]} h5 {[%emt 0:01:19]} 12. Nf2 {[%emt 0:00:23]} d5 {[%emt 0:03:02]} 13. Na3 {[%emt 0:08:00]} (13. e5 $5 {[%cal Re5f6]} Nd7 14. Na3 $11) 13... a6 {[%emt 0:04:10]} 14. Nc2 {[%emt 0:04:19]} h4 {[%emt 0:06:13]} 15. g4 {[%emt 0:02:22]} h3 {[%emt 0:00:05]} 16. Bf3 {[%emt 0:03:38]} dxe4 $1 {[%emt 0:05:56]} 17. dxe4 {[%emt 0:00:52]} (17. Nxe4 $11 Nxe4 18. Bxe4) 17... g5 $1 $17 {[%emt 0:00:30] &Nero is more active.} 18. fxg5 {[%emt 0:03:59]} Nh7 {[%emt 0:05:06]} 19. g6 {[%emt 0:20:36]} fxg6 {[%emt 0:00:19]} 20. a4 {[%emt 0:00:06]} ({Better is} 20. Qe2 $1 $15) 20... bxa4 {[%emt 0:06:46]} 21. Qe2 {[%emt 0:02:56]} Ng5 {[%emt 0:02:30]} 22. Bxg5 {[%emt 0:03:43]} Bxg5 {[%emt 0:00:07]} 23. e5 {[%emt 0:00:05] Ne4 is the strong threat.} O-O-O $1 {[%emt 0:05:24]} 24. Ne4 {[%emt 0:01:47] Against Rd2} Be7 {[%emt 0:01:16] This bishop pair is nice.} 25. Nd6+ {[%emt 0:01:24]} Bxd6 {[%emt 0:00:29]} 26. exd6 {[%emt 0:00:03]} Rxd6 {[%emt 0:06:42]} 27. Na3 {[%emt 0:00:46]} Na5 {[%emt 0:00:44]} 28. Rf2 {[%emt 0:03:14]} Bxf3 {[%emt 0:14:45]} 29. Qxf3 {[%emt 0:01:35]} Qc6 {[%emt 0:00:30] Against Qa8+} (29... Qb7 $1 $17 {Strongly threatening ...Qxf3.} 30. Qe3 Qc6) 30. Qg3 {[%emt 0:02:33]} (30. Qxc6+ $1 $15 Rxc6 31. Re1) 30... Qd7 {[%emt 0:04:59]} 31. Raf1 {[%emt 0:01:28]} Rd1 {[%emt 0:00:52]} 32. Qe5 {[%emt 0:02:02]} Rxf1+ {[%emt 0:00:09]} 33. Rxf1 {[%emt 0:00:16]} Rd8 {[%emt 0:00:12]} 34. Qxc5+ {[%emt 0:01:09]} Qc6 {[%emt 0:01:23]} 35. Qxc6+ {[%emt 0:02:07]} Nxc6 {[%emt 0:00:04][%mdl 4096] Endgame KRN-KRN} 36. Nc4 {[%emt 0:00:10] Against Ne5} a3 $1 {[%emt 0:00:08]} 37. bxa3 {[%emt 0:11:29]} Rd3 $1 {[%emt 0:00:16]} 38. Rf8+ {[%emt 0:04:58]} Kd7 {[%emt 0:00:54]} 39. Rf7+ {[%emt 0:00:29]} Kd8 {[%emt 0:00:24]} 40. Rf8+ {[%emt 0:00:00] [#]} Ke7 $1 {[%emt 0:00:00]} 41. Rc8 {[%emt 0:13:33] [#]} Kd7 {[%emt 0:03:26]} 42. Nb6+ {[%emt 0:03:14]} Kd6 {[%emt 0:00:04]} 43. Na4 {[%emt 0:09:32] This costs White the game.} (43. Nc4+ $17 Kd5 44. Kf2) 43... Rf3 $19 {[%emt 0:15:59]} 44. g5 {[%emt 0:00:10]} Ne5 {[%emt 0:00:34]} 45. Rd8+ {[%emt 0:01:46]} (45. Nb6 $142) 45... Ke7 {[%emt 0:08:39]} 46. Rb8 {[%emt 0:07:47]} ({Inferior is} 46. Ra8 Rf5 47. Ra7+ Kd8 $19) 46... Nd3 {[%emt 0:04:23] Prevents Nc5.} 47. Rb1 $2 {[%emt 0:01:31]} (47. Rb7+ Kd6 48. Rb1) 47... Rf2 {[%emt 0:04:09]} 48. Rd1 {[%emt 0:00:35]} Rg2+ {[%emt 0:00:05]} 49. Kf1 {[%emt 0:00:01]} Ne5 {[%emt 0:05:04]} 50. Nb6 {[%emt 0:01:15]} Rxg5 {[%emt 0:00:18]} (50... Rxh2 $142 {( -> ...Rh1+)} 51. Rd4 Rc2 52. Nc8+ Kf8 53. Rf4+ Kg7) 51. Nc8+ $2 {[%emt 0:02:32]} (51. Rd2 {was forced.}) 51... Kf6 {[%emt 0:01:07] And now ...Rg2 would win.} 52. Nd6 {[%emt 0:00:04] Threatens to win with Ne4+.} Rg2 {[%emt 0:02:03]} 53. Rd2 {[%emt 0:00:30]} (53. Ne4+ $142 Kf5 54. Nf2) 53... Rxd2 {[%emt 0:01:10]} 54. Ne4+ {[%emt 0:00:02]} Kf5 {[%emt 0:00:01]} 55. Nxd2 {[%emt 0:00:03] KN-KN} Kf4 {[%emt 0:00:23]} 56. Ke2 {[%emt 0:00:04]} g5 {[%emt 0:00:24][%cal Bg6g5,Bg5g4][%mdl 32] Hoping for ...Ng4.} 57. c4 {[%emt 0:00:12]} g4 {[%emt 0:00:13] aiming for ...g3.} 58. Kf2 {[%emt 0:01:12] Prevents g3+.} a5 {[%emt 0:00:04]} 59. a4 {[%emt 0:00:14]} Nd3+ {[%emt 0:00:09]} 60. Ke2 {[%emt 0:00:19]} Nc5 {[%emt 0:00:03] Black is clearly winning.} 61. Kf2 {[%emt 0:00:05]} e5 {[%emt 0:00:15]} 62. Nf1 {[%emt 0:00:19]} Nxa4 {[%emt 0:00:19]} (62... Ne4+ $142 63. Ke1 g3 64. hxg3+ Kf3) 63. Ne3 {[%emt 0:00:03]} Nc3 {[%emt 0:00:35] Weighted Error Value: White=0.71/Black=0.20 (precise)} 0-1